Workbook

Sheet data
A1: Date & Time | B1: Lat | C1: Lon | D1: Wind MPH | E1: Pressure | F1: Type
A2: 2012-10-22T15:00:00 | B2: 13.5 | C2: -78 | D2: 30 | E2: 1003 | F2: Tropical Depression | G2: =IF(A2=LOOKUP(map!$C$3,$A$2:$A$32),data!D2,NA()) ->  | H2: =IF($A2<=LOOKUP(map!$C$3,$A$2:$A$32),data!B2,NA()) -> 13.5 | I2: =IF($A2<=LOOKUP(map!$C$3,$A$2:$A$32),data!C2,NA()) -> -78 | J2: =IF($A2<=LOOKUP(map!$C$3,$A$2:$A$32),data!D2,NA()) -> 30
A3: 2012-10-22T21:00:00 | B3: 12.5 | C3: -78.5 | D3: 40 | E3: 999 | F3: Tropical Storm | G3: =IF(A3=LOOKUP(map!$C$3,$A$2:$A$32),data!D3,NA()) ->  | H3: =IF($A3<=LOOKUP(map!$C$3,$A$2:$A$32),data!B3,NA()) -> 12.5 | I3: =IF($A3<=LOOKUP(map!$C$3,$A$2:$A$32),data!C3,NA()) -> -78.5 | J3: =IF($A3<=LOOKUP(map!$C$3,$A$2:$A$32),data!D3,NA()) -> 40
A4: 2012-10-23T03:00:00 | B4: 12.7 | C4: -78.6 | D4: 45 | E4: 998 | F4: Tropical Storm | G4: =IF(A4=LOOKUP(map!$C$3,$A$2:$A$32),data!D4,NA()) ->  | H4: =IF($A4<=LOOKUP(map!$C$3,$A$2:$A$32),data!B4,NA()) -> 12.7 | I4: =IF($A4<=LOOKUP(map!$C$3,$A$2:$A$32),data!C4,NA()) -> -78.6 | J4: =IF($A4<=LOOKUP(map!$C$3,$A$2:$A$32),data!D4,NA()) -> 45
A5: 2012-10-23T09:00:00 | B5: 13.3 | C5: -78.6 | D5: 45 | E5: 998 | F5: Tropical Storm | G5: =IF(A5=LOOKUP(map!$C$3,$A$2:$A$32),data!D5,NA()) ->  | H5: =IF($A5<=LOOKUP(map!$C$3,$A$2:$A$32),data!B5,NA()) -> 13.3 | I5: =IF($A5<=LOOKUP(map!$C$3,$A$2:$A$32),data!C5,NA()) -> -78.6 | J5: =IF($A5<=LOOKUP(map!$C$3,$A$2:$A$32),data!D5,NA()) -> 45
A6: 2012-10-23T15:00:00 | B6: 13.8 | C6: -77.8 | D6: 50 | E6: 993 | F6: Tropical Storm | G6: =IF(A6=LOOKUP(map!$C$3,$A$2:$A$32),data!D6,NA()) ->  | H6: =IF($A6<=LOOKUP(map!$C$3,$A$2:$A$32),data!B6,NA()) -> 13.8 | I6: =IF($A6<=LOOKUP(map!$C$3,$A$2:$A$32),data!C6,NA()) -> -77.8 | J6: =IF($A6<=LOOKUP(map!$C$3,$A$2:$A$32),data!D6,NA()) -> 50
A7: 2012-10-23T21:00:00 | B7: 14.3 | C7: -77.6 | D7: 50 | E7: 993 | F7: Tropical Storm | G7: =IF(A7=LOOKUP(map!$C$3,$A$2:$A$32),data!D7,NA()) ->  | H7: =IF($A7<=LOOKUP(map!$C$3,$A$2:$A$32),data!B7,NA()) -> 14.3 | I7: =IF($A7<=LOOKUP(map!$C$3,$A$2:$A$32),data!C7,NA()) -> -77.6 | J7: =IF($A7<=LOOKUP(map!$C$3,$A$2:$A$32),data!D7,NA()) -> 50
A8: 2012-10-24T03:00:00 | B8: 15.2 | C8: -77.2 | D8: 60 | E8: 989 | F8: Tropical Storm | G8: =IF(A8=LOOKUP(map!$C$3,$A$2:$A$32),data!D8,NA()) ->  | H8: =IF($A8<=LOOKUP(map!$C$3,$A$2:$A$32),data!B8,NA()) -> 15.2 | I8: =IF($A8<=LOOKUP(map!$C$3,$A$2:$A$32),data!C8,NA()) -> -77.2 | J8: =IF($A8<=LOOKUP(map!$C$3,$A$2:$A$32),data!D8,NA()) -> 60
A9: 2012-10-24T09:00:00 | B9: 16.3 | C9: -77 | D9: 70 | E9: 986 | F9: Tropical Storm | G9: =IF(A9=LOOKUP(map!$C$3,$A$2:$A$32),data!D9,NA()) ->  | H9: =IF($A9<=LOOKUP(map!$C$3,$A$2:$A$32),data!B9,NA()) -> 16.3 | I9: =IF($A9<=LOOKUP(map!$C$3,$A$2:$A$32),data!C9,NA()) -> -77 | J9: =IF($A9<=LOOKUP(map!$C$3,$A$2:$A$32),data!D9,NA()) -> 70
A10: 2012-10-24T15:00:00 | B10: 17.1 | C10: -76.7 | D10: 80 | E10: 973 | F10: Category 1 Hurricane | G10: =IF(A10=LOOKUP(map!$C$3,$A$2:$A$32),data!D10,NA()) ->  | H10: =IF($A10<=LOOKUP(map!$C$3,$A$2:$A$32),data!B10,NA()) -> 17.1 | I10: =IF($A10<=LOOKUP(map!$C$3,$A$2:$A$32),data!C10,NA()) -> -76.7 | J10: =IF($A10<=LOOKUP(map!$C$3,$A$2:$A$32),data!D10,NA()) -> 80
A11: 2012-10-24T21:00:00 | B11: 18.3 | C11: -76.6 | D11: 80 | E11: 970 | F11: Category 1 Hurricane | G11: =IF(A11=LOOKUP(map!$C$3,$A$2:$A$32),data!D11,NA()) ->  | H11: =IF($A11<=LOOKUP(map!$C$3,$A$2:$A$32),data!B11,NA()) -> 18.3 | I11: =IF($A11<=LOOKUP(map!$C$3,$A$2:$A$32),data!C11,NA()) -> -76.6 | J11: =IF($A11<=LOOKUP(map!$C$3,$A$2:$A$32),data!D11,NA()) -> 80
A12: 2012-10-25T03:00:00 | B12: 19.4 | C12: -76.3 | D12: 90 | E12: 954 | F12: Category 1 Hurricane | G12: =IF(A12=LOOKUP(map!$C$3,$A$2:$A$32),data!D12,NA()) ->  | H12: =IF($A12<=LOOKUP(map!$C$3,$A$2:$A$32),data!B12,NA()) -> 19.4 | I12: =IF($A12<=LOOKUP(map!$C$3,$A$2:$A$32),data!C12,NA()) -> -76.3 | J12: =IF($A12<=LOOKUP(map!$C$3,$A$2:$A$32),data!D12,NA()) -> 90
A13: 2012-10-25T09:00:00 | B13: 20.9 | C13: -75.8 | D13: 105 | E13: 960 | F13: Category 2 Hurricane | G13: =IF(A13=LOOKUP(map!$C$3,$A$2:$A$32),data!D13,NA()) ->  | H13: =IF($A13<=LOOKUP(map!$C$3,$A$2:$A$32),data!B13,NA()) -> 20.9 | I13: =IF($A13<=LOOKUP(map!$C$3,$A$2:$A$32),data!C13,NA()) -> -75.8 | J13: =IF($A13<=LOOKUP(map!$C$3,$A$2:$A$32),data!D13,NA()) -> 105
A14: 2012-10-25T15:00:00 | B14: 22.4 | C14: -75.5 | D14: 105 | E14: 964 | F14: Category 2 Hurricane | G14: =IF(A14=LOOKUP(map!$C$3,$A$2:$A$32),data!D14,NA()) ->  | H14: =IF($A14<=LOOKUP(map!$C$3,$A$2:$A$32),data!B14,NA()) -> 22.4 | I14: =IF($A14<=LOOKUP(map!$C$3,$A$2:$A$32),data!C14,NA()) -> -75.5 | J14: =IF($A14<=LOOKUP(map!$C$3,$A$2:$A$32),data!D14,NA()) -> 105
A15: 2012-10-25T21:00:00 | B15: 24.5 | C15: -75.6 | D15: 105 | E15: 963 | F15: Category 2 Hurricane | G15: =IF(A15=LOOKUP(map!$C$3,$A$2:$A$32),data!D15,NA()) ->  | H15: =IF($A15<=LOOKUP(map!$C$3,$A$2:$A$32),data!B15,NA()) -> 24.5 | I15: =IF($A15<=LOOKUP(map!$C$3,$A$2:$A$32),data!C15,NA()) -> -75.6 | J15: =IF($A15<=LOOKUP(map!$C$3,$A$2:$A$32),data!D15,NA()) -> 105
A16: 2012-10-26T03:00:00 | B16: 25.3 | C16: -76.1 | D16: 90 | E16: 968 | F16: Category 1 Hurricane | G16: =IF(A16=LOOKUP(map!$C$3,$A$2:$A$32),data!D16,NA()) ->  | H16: =IF($A16<=LOOKUP(map!$C$3,$A$2:$A$32),data!B16,NA()) -> 25.3 | I16: =IF($A16<=LOOKUP(map!$C$3,$A$2:$A$32),data!C16,NA()) -> -76.1 | J16: =IF($A16<=LOOKUP(map!$C$3,$A$2:$A$32),data!D16,NA()) -> 90
A17: 2012-10-26T09:00:00 | B17: 26.3 | C17: -76.9 | D17: 80 | E17: 968 | F17: Category 1 Hurricane | G17: =IF(A17=LOOKUP(map!$C$3,$A$2:$A$32),data!D17,NA()) ->  | H17: =IF($A17<=LOOKUP(map!$C$3,$A$2:$A$32),data!B17,NA()) -> 26.3 | I17: =IF($A17<=LOOKUP(map!$C$3,$A$2:$A$32),data!C17,NA()) -> -76.9 | J17: =IF($A17<=LOOKUP(map!$C$3,$A$2:$A$32),data!D17,NA()) -> 80
A18: 2012-10-26T15:00:00 | B18: 26.7 | C18: -76.9 | D18: 80 | E18: 970 | F18: Category 1 Hurricane | G18: =IF(A18=LOOKUP(map!$C$3,$A$2:$A$32),data!D18,NA()) ->  | H18: =IF($A18<=LOOKUP(map!$C$3,$A$2:$A$32),data!B18,NA()) -> 26.7 | I18: =IF($A18<=LOOKUP(map!$C$3,$A$2:$A$32),data!C18,NA()) -> -76.9 | J18: =IF($A18<=LOOKUP(map!$C$3,$A$2:$A$32),data!D18,NA()) -> 80
A19: 2012-10-26T21:00:00 | B19: 27.3 | C19: -77.1 | D19: 75 | E19: 971 | F19: Category 1 Hurricane | G19: =IF(A19=LOOKUP(map!$C$3,$A$2:$A$32),data!D19,NA()) ->  | H19: =IF($A19<=LOOKUP(map!$C$3,$A$2:$A$32),data!B19,NA()) -> 27.3 | I19: =IF($A19<=LOOKUP(map!$C$3,$A$2:$A$32),data!C19,NA()) -> -77.1 | J19: =IF($A19<=LOOKUP(map!$C$3,$A$2:$A$32),data!D19,NA()) -> 75
A20: 2012-10-27T03:00:00 | B20: 27.7 | C20: -77.1 | D20: 75 | E20: 969 | F20: Category 1 Hurricane | G20: =IF(A20=LOOKUP(map!$C$3,$A$2:$A$32),data!D20,NA()) ->  | H20: =IF($A20<=LOOKUP(map!$C$3,$A$2:$A$32),data!B20,NA()) -> 27.7 | I20: =IF($A20<=LOOKUP(map!$C$3,$A$2:$A$32),data!C20,NA()) -> -77.1 | J20: =IF($A20<=LOOKUP(map!$C$3,$A$2:$A$32),data!D20,NA()) -> 75
A21: 2012-10-27T09:00:00 | B21: 28.6 | C21: -76.7 | D21: 70 | E21: 969 | F21: Tropical Storm | G21: =IF(A21=LOOKUP(map!$C$3,$A$2:$A$32),data!D21,NA()) ->  | H21: =IF($A21<=LOOKUP(map!$C$3,$A$2:$A$32),data!B21,NA()) -> 28.6 | I21: =IF($A21<=LOOKUP(map!$C$3,$A$2:$A$32),data!C21,NA()) -> -76.7 | J21: =IF($A21<=LOOKUP(map!$C$3,$A$2:$A$32),data!D21,NA()) -> 70
A22: 2012-10-27T15:00:00 | B22: 29 | C22: -76 | D22: 75 | E22: 958 | F22: Category 1 Hurricane | G22: =IF(A22=LOOKUP(map!$C$3,$A$2:$A$32),data!D22,NA()) ->  | H22: =IF($A22<=LOOKUP(map!$C$3,$A$2:$A$32),data!B22,NA()) -> 29 | I22: =IF($A22<=LOOKUP(map!$C$3,$A$2:$A$32),data!C22,NA()) -> -76 | J22: =IF($A22<=LOOKUP(map!$C$3,$A$2:$A$32),data!D22,NA()) -> 75
A23: 2012-10-27T21:00:00 | B23: 30.2 | C23: -75.2 | D23: 75 | E23: 961 | F23: Category 1 Hurricane | G23: =IF(A23=LOOKUP(map!$C$3,$A$2:$A$32),data!D23,NA()) ->  | H23: =IF($A23<=LOOKUP(map!$C$3,$A$2:$A$32),data!B23,NA()) -> 30.2 | I23: =IF($A23<=LOOKUP(map!$C$3,$A$2:$A$32),data!C23,NA()) -> -75.2 | J23: =IF($A23<=LOOKUP(map!$C$3,$A$2:$A$32),data!D23,NA()) -> 75
A24: 2012-10-28T03:00:00 | B24: 30.9 | C24: -74.3 | D24: 75 | E24: 960 | F24: Category 1 Hurricane | G24: =IF(A24=LOOKUP(map!$C$3,$A$2:$A$32),data!D24,NA()) ->  | H24: =IF($A24<=LOOKUP(map!$C$3,$A$2:$A$32),data!B24,NA()) -> 30.9 | I24: =IF($A24<=LOOKUP(map!$C$3,$A$2:$A$32),data!C24,NA()) -> -74.3 | J24: =IF($A24<=LOOKUP(map!$C$3,$A$2:$A$32),data!D24,NA()) -> 75
A25: 2012-10-28T09:00:00 | B25: 31.9 | C25: -73.3 | D25: 75 | E25: 960 | F25: Category 1 Hurricane | G25: =IF(A25=LOOKUP(map!$C$3,$A$2:$A$32),data!D25,NA()) ->  | H25: =IF($A25<=LOOKUP(map!$C$3,$A$2:$A$32),data!B25,NA()) -> 31.9 | I25: =IF($A25<=LOOKUP(map!$C$3,$A$2:$A$32),data!C25,NA()) -> -73.3 | J25: =IF($A25<=LOOKUP(map!$C$3,$A$2:$A$32),data!D25,NA()) -> 75
A26: 2012-10-28T15:00:00 | B26: 32.5 | C26: -72.6 | D26: 75 | E26: 951 | F26: Category 1 Hurricane | G26: =IF(A26=LOOKUP(map!$C$3,$A$2:$A$32),data!D26,NA()) ->  | H26: =IF($A26<=LOOKUP(map!$C$3,$A$2:$A$32),data!B26,NA()) -> 32.5 | I26: =IF($A26<=LOOKUP(map!$C$3,$A$2:$A$32),data!C26,NA()) -> -72.6 | J26: =IF($A26<=LOOKUP(map!$C$3,$A$2:$A$32),data!D26,NA()) -> 75
A27: 2012-10-28T21:00:00 | B27: 33.4 | C27: -71.3 | D27: 75 | E27: 952 | F27: Category 1 Hurricane | G27: =IF(A27=LOOKUP(map!$C$3,$A$2:$A$32),data!D27,NA()) ->  | H27: =IF($A27<=LOOKUP(map!$C$3,$A$2:$A$32),data!B27,NA()) -> 33.4 | I27: =IF($A27<=LOOKUP(map!$C$3,$A$2:$A$32),data!C27,NA()) -> -71.3 | J27: =IF($A27<=LOOKUP(map!$C$3,$A$2:$A$32),data!D27,NA()) -> 75
A28: 2012-10-29T03:00:00 | B28: 34.5 | C28: -70.5 | D28: 75 | E28: 950 | F28: Category 1 Hurricane | G28: =IF(A28=LOOKUP(map!$C$3,$A$2:$A$32),data!D28,NA()) ->  | H28: =IF($A28<=LOOKUP(map!$C$3,$A$2:$A$32),data!B28,NA()) -> 34.5 | I28: =IF($A28<=LOOKUP(map!$C$3,$A$2:$A$32),data!C28,NA()) -> -70.5 | J28: =IF($A28<=LOOKUP(map!$C$3,$A$2:$A$32),data!D28,NA()) -> 75
A29: 2012-10-29T09:00:00 | B29: 35.9 | C29: -70.5 | D29: 85 | E29: 946 | F29: Category 1 Hurricane | G29: =IF(A29=LOOKUP(map!$C$3,$A$2:$A$32),data!D29,NA()) ->  | H29: =IF($A29<=LOOKUP(map!$C$3,$A$2:$A$32),data!B29,NA()) -> 35.9 | I29: =IF($A29<=LOOKUP(map!$C$3,$A$2:$A$32),data!C29,NA()) -> -70.5 | J29: =IF($A29<=LOOKUP(map!$C$3,$A$2:$A$32),data!D29,NA()) -> 85
A30: 2012-10-29T15:00:00 | B30: 37.5 | C30: -71.5 | D30: 90 | E30: 943 | F30: Category 1 Hurricane | G30: =IF(A30=LOOKUP(map!$C$3,$A$2:$A$32),data!D30,NA()) ->  | H30: =IF($A30<=LOOKUP(map!$C$3,$A$2:$A$32),data!B30,NA()) -> 37.5 | I30: =IF($A30<=LOOKUP(map!$C$3,$A$2:$A$32),data!C30,NA()) -> -71.5 | J30: =IF($A30<=LOOKUP(map!$C$3,$A$2:$A$32),data!D30,NA()) -> 90
A31: 2012-10-29T21:00:00 | B31: 38.8 | C31: -74.4 | D31: 90 | E31: 940 | F31: Category 1 Hurricane | G31: =IF(A31=LOOKUP(map!$C$3,$A$2:$A$32),data!D31,NA()) ->  | H31: =IF($A31<=LOOKUP(map!$C$3,$A$2:$A$32),data!B31,NA()) -> 38.8 | I31: =IF($A31<=LOOKUP(map!$C$3,$A$2:$A$32),data!C31,NA()) -> -74.4 | J31: =IF($A31<=LOOKUP(map!$C$3,$A$2:$A$32),data!D31,NA()) -> 90
A32: 2012-10-30T03:00:00 | B32: 39.8 | C32: -75.4 | D32: 75 | E32: 952 | F32: Post-Tropical Cyclone | G32: =IF(A32=LOOKUP(map!$C$3,$A$2:$A$32),data!D32,NA()) -> 75 | H32: =IF($A32<=LOOKUP(map!$C$3,$A$2:$A$32),data!B32,NA()) -> 39.8 | I32: =IF($A32<=LOOKUP(map!$C$3,$A$2:$A$32),data!C32,NA()) -> -75.4 | J32: =IF($A32<=LOOKUP(map!$C$3,$A$2:$A$32),data!D32,NA()) -> 75

Sheet map
A1: FALSE | F1: Road Map of Hurricane Sandy
B3: Date & Time | C3: ="2012-10-22 15:00"+B14*6/24 -> 2012-10-30T03:00:00
B4: Lon | C4: =LOOKUP($C$3,data!$A$2:$A$32,data!$C$2:$C$32) -> -75.4
B5: Lat | C5: =LOOKUP($C$3,data!$A$2:$A$32,data!$B$2:$B$32) -> 39.8
B6: Wind(mph) | C6: =LOOKUP($C$3,data!$A$2:$A$32,data!$D$2:$D$32) -> 75
B7: Pressure(mb) | C7: =LOOKUP($C$3,data!$A$2:$A$32,data!$E$2:$E$32) -> 952
B9: ="Hurricane [Sandy]"&CHAR(13)&"Date: "&TEXT(C3,"[$-409]mmm-dd hh:mm")&CHAR(10)&"Wind: "&C6&"mph"&CHAR(13)&"Pressure: "&C7&"mb" -> Hurricane [Sandy] Date: Oct-30 03:00 Wind: 75mph Pressure: 952mb
B12: Play | C12: Stop Loop
B14: 30
